[Event "4NCL Div 2 2024-25"]
[Site "England"]
[Date "2024.11.23"]
[Round "1.26"]
[White "Jones, Steven A"]
[Black "Cooksey, Paul S"]
[Result "0-1"]
[ECO "B12"]
[WhiteElo "2175"]
[BlackElo "2234"]
[Annotator "RC"]
[PlyCount "119"]
[EventDate "2024.11.23"]
[EventType "team-tourn"]
[EventCountry "ENG"]
[SourceTitle "playchess.com"]
[Source "ChessBase"]
[SourceQuality "1"]
[TimeControl "40/6000+30:3000+30"]

1. e4 {[%emt 0:10:22]} c6 {[%emt 0:10:05]} 2. d4 {[%emt 0:00:44]} d5 {[%emt 0:00:07]} 3. e5 {[%emt 0:00:43]} Bf5 {[%emt 0:00:43]} 4. Nf3 {[%emt 0:00:19]} e6 {[%emt 0:00:12]} 5. Be2 {[%emt 0:00:13]} Ne7 {[%emt 0:00:59]} 6. O-O {[%emt 0:00:28]} Bg6 {[%emt 0:00:07]} 7. Nbd2 {[%emt 0:00:38]} c5 {[%emt 0:00:25]} 8. c3 {[%emt 0:08:46]} cxd4 {[%emt 0:06:07]} 9. cxd4 {[%emt 0:05:47]} Nbc6 {[%emt 0:00:28]} 10. Nb3 {[%emt 0:01:49]} Nf5 {[%emt 0:05:30]} 11. h3 {[%emt 0:11:12]} Qb6 {[%emt 0:05:48]} 12. g4 {[%emt 0:04:40]} Nfe7 {[%emt 0:02:24]} 13. Nh4 {[%emt 0:04:13]} Rc8 {[%emt 0:13:12]} 14. Be3 {[%emt 0:08:40]} h5 {[%emt 0:06:02]} 15. Nxg6 {[%emt 0:03:35]} Nxg6 {[%emt 0:00:20]} 16. gxh5 {[%emt 0:01:42]} Nge7 {[%emt 0:01:26]} 17. Rc1 {[%emt 0:01:04]} Nf5 {[%emt 0:55:05]} 18. Bd3 {[%emt 0:01:29]} g6 {[%emt 0:00:00]} 19. hxg6 {[%emt 0:01:34]} fxg6 {[%emt 0:00:00]} 20. Bxf5 {[%emt 0:00:39]} gxf5 {[%emt 0:00:00]} 21. Kh2 {[%emt 0:02:24]} Rc7 {[%emt 0:00:00]} 22. Rg1 {[%emt 0:02:13]} Rch7 {[%emt 0:00:00]} 23. Rg3 {[%emt 0:00:15]} a5 {[%emt 0:00:00]} 24. Rc2 {[%emt 0:11:17]} Be7 {[%emt 0:00:00]} 25. Qg1 {[%emt 0:04:57]} Kf7 {[%emt 0:00:00]} 26. f4 {[%emt 0:02:02]} a4 {[%emt 0:00:00]} 27. Nc5 {[%emt 0:00:29]} Bxc5 {[%emt 0:00:00]} 28. dxc5 {[%emt 0:00:14]} Qd8 {[%emt 0:00:00]} 29. Rcg2 {[%emt 0:03:22]} Qf8 {[%emt 0:00:00]} 30. Qd1 {[%emt 0:02:53]} Qa8 {[%emt 0:00:00]} 31. Qg1 {[%emt 0:03:17]} Qf8 {[%emt 0:00:00]} 32. Qd1 {[%emt 0:00:04]} Qa8 {[%emt 0:00:00]} 33. Bf2 {[%emt 0:01:28]} Ne7 {[%emt 0:00:00]} 34. Qd3 {[%emt 0:04:55]} Qe8 {[%emt 0:00:00]} 35. b3 {[%emt 0:02:22]} axb3 {[%emt 0:00:00]} 36. Qxb3 {[%emt 0:00:01]} Qc6 {[%emt 0:00:14]} 37. Bd4 {[%emt 0:00:57]} Qa6 {[%emt 0:02:31]} 38. Qe3 {[%emt 0:01:32]} Qc4 {[%emt 0:02:33]} 39. Qg1 {[%emt 0:01:24]} Ke8 {[%emt 0:00:48]} 40. Rb2 {[%emt 0:02:52]} Qa6 {[%emt 0:02:43]} 41. Qf2 {[%emt 0:27:43]} Nc6 {[%emt 0:23:12]} 42. Qg2 {[%emt 0:11:28]} Kf8 {[%emt 0:01:26]} 43. Be3 {[%emt 0:02:11]} Qc4 {[%emt 0:02:16]} 44. Qc2 {[%emt 0:02:30]} Qf1 {[%emt 0:01:19]} 45. Qg2 {[%emt 0:00:26]} Qc4 {[%emt 0:00:21]} 46. Rb3 {[%emt 0:02:03]} Qe4 {[%emt 0:01:57]} 47. Bd2 {[%emt 0:03:07]} Qc2 {[%emt 0:07:08]} 48. Rg6 {[%emt 0:01:07]} Nd4 {[%emt 0:01:56]} 49. Ra3 {[%emt 0:03:04]} Kf7 {[%emt 0:01:23]} 50. Rag3 {[%emt 0:01:06]} Qe4 {[%emt 0:04:47]} 51. Rf6+ {[%emt 0:01:13]} Ke8 {[%emt 0:01:37]} 52. c6 {[%emt 0:01:33]} bxc6 {[%emt 0:03:33]} 53. Rg8+ {[%emt 0:01:01]} Kd7 {[%emt 0:00:34]} 54. Rg7+ {[%emt 0:00:16]} Kc8 {[%emt 0:00:24]} 55. Rxh7 {[%emt 0:00:57]} Qxg2+ {[%emt 0:01:26]} 56. Kxg2 {[%emt 0:00:01]} Rxh7 {[%emt 0:00:08]} 57. Be3 {[%emt 0:00:52]} Nc2 {[%emt 0:00:22]} 58. Bc5 {[%emt 0:00:19]} Ne1+ {[%emt 0:00:53]} 59. Kf1 {[%emt 0:00:55]} Nd3 {[%emt 0:00:30]} 60. Bg1 {[%emt 0:01:03]} 0-1

[Event "4NCL Div 2 2024-25"]
[Site "England"]
[Date "2024.11.23"]
[Round "1.27"]
[White "Kacprzak, Kacper"]
[Black "Blackburn, Jonathan L B"]
[Result "1/2-1/2"]
[ECO "C11"]
[WhiteElo "2291"]
[BlackElo "2197"]
[Annotator "RC"]
[PlyCount "68"]
[EventDate "2024.11.23"]
[EventType "team-tourn"]
[EventCountry "ENG"]
[SourceTitle "playchess.com"]
[Source "ChessBase"]
[SourceQuality "1"]
[TimeControl "40/6000+30:3000+30"]

1. e4 {[%emt 0:10:04]} e6 {[%emt 0:10:04]} 2. d4 {[%emt 0:00:06]} d5 {[%emt 0:00:03]} 3. Nc3 {[%emt 0:00:09]} Nf6 {[%emt 0:00:34]} 4. e5 {[%emt 0:00:46]} Nfd7 {[%emt 0:00:03]} 5. f4 {[%emt 0:00:11]} c5 {[%emt 0:00:03]} 6. Nf3 {[%emt 0:00:05]} Nc6 {[%emt 0:00:14]} 7. Be3 {[%emt 0:00:05]} Be7 {[%emt 0:00:48]} 8. Qd2 {[%emt 0:00:33]} O-O {[%emt 0:02:21]} 9. dxc5 {[%emt 0:02:12]} Qa5 {[%emt 0:00:59]} 10. a3 {[%emt 0:01:13]} a6 {[%emt 0:05:03]} 11. Qd1 {[%emt 0:00:49]} f6 {[%emt 0:20:31]} 12. exf6 {[%emt 0:14:05]} Bxf6 {[%emt 0:06:49]} 13. Qd2 {[%emt 0:07:43]} Nxc5 {[%emt 0:13:29]} 14. O-O-O {[%emt 0:14:00]} b6 {[%emt 0:15:17]} 15. Nd4 {[%emt 0:10:27]} Bd7 {[%emt 0:02:33]} 16. g3 {[%emt 0:07:36]} Rac8 {[%emt 0:03:27]} 17. Kb1 {[%emt 0:16:10]} Na4 {[%emt 0:05:15]} 18. Na2 {[%emt 0:04:37]} Qxd2 {[%emt 0:10:50]} 19. Rxd2 {[%emt 0:00:07]} b5 {[%emt 0:02:30]} 20. Nxc6 {[%emt 0:07:45]} Bxc6 {[%emt 0:00:44]} 21. Bd4 {[%emt 0:00:35]} Bd7 {[%emt 0:01:54]} 22. Bh3 {[%emt 0:06:11]} Rc7 {[%emt 0:01:37]} 23. Bxf6 {[%emt 0:02:12]} gxf6 {[%emt 0:00:40]} 24. Re1 {[%emt 0:00:33]} f5 {[%emt 0:01:40]} 25. Nb4 {[%emt 0:02:16]} Nc5 {[%emt 0:00:21]} 26. Bg2 {[%emt 0:01:19]} a5 {[%emt 0:01:49]} 27. Nd3 {[%emt 0:00:06]} Nxd3 {[%emt 0:00:39]} 28. Rxd3 {[%emt 0:00:38]} Rfc8 {[%emt 0:00:22]} 29. Rd2 {[%emt 0:01:06]} Rb8 {[%emt 0:00:50]} 30. Re3 {[%emt 0:00:34]} b4 {[%emt 0:01:00]} 31. Rd4 {[%emt 0:01:06]} Rbc8 {[%emt 0:01:04]} 32. Rd2 {[%emt 0:00:29]} Rb8 {[%emt 0:00:07]} 33. Rd4 {[%emt 0:00:11]} Rbc8 {[%emt 0:00:10]} 34. Rd2 {[%emt 0:00:17]} Rb8 {[%emt 0:00:28]} 1/2-1/2

[Event "4NCL Div 2 2024-25"]
[Site "England"]
[Date "2024.11.23"]
[Round "1.28"]
[White "Southcott-Moyers, Indy"]
[Black "Webb, Richard M"]
[Result "1/2-1/2"]
[ECO "D73"]
[WhiteElo "2174"]
[BlackElo "2172"]
[Annotator "RC"]
[PlyCount "57"]
[EventDate "2024.11.23"]
[EventType "team-tourn"]
[EventCountry "ENG"]
[SourceTitle "playchess.com"]
[Source "ChessBase"]
[SourceQuality "1"]
[TimeControl "40/6000+30:3000+30"]

1. d4 {[%emt 0:10:20]} Nf6 {[%emt 0:10:05]} 2. c4 {[%emt 0:00:05]} g6 {[%emt 0:00:05]} 3. g3 {[%emt 0:00:02]} c6 {[%emt 0:00:31]} 4. Bg2 {[%emt 0:00:04]} d5 {[%emt 0:00:07]} 5. Qa4 {[%emt 0:00:32]} Bg7 {[%emt 0:02:08]} 6. cxd5 {[%emt 0:05:29]} O-O {[%emt 0:00:50]} 7. Nf3 {[%emt 0:07:21]} cxd5 {[%emt 0:00:51]} 8. O-O {[%emt 0:01:53]} Nc6 {[%emt 0:02:03]} 9. Nc3 {[%emt 0:04:55]} Ne4 {[%emt 0:03:57]} 10. h3 {[%emt 0:13:16]} Bf5 {[%emt 0:08:56]} 11. Bf4 {[%emt 0:05:11]} Nxc3 {[%emt 0:07:57]} 12. bxc3 {[%emt 0:00:08]} Qd7 {[%emt 0:01:28]} 13. Kh2 {[%emt 0:02:06]} Nxd4 {[%emt 0:11:27]} 14. Qxd7 {[%emt 0:00:10]} Nxf3+ {[%emt 0:00:04]} 15. Bxf3 {[%emt 0:00:08]} Bxd7 {[%emt 0:00:03]} 16. Bxd5 {[%emt 0:00:12]} Rac8 {[%emt 0:02:35]} 17. Bxb7 {[%emt 0:04:38]} Rxc3 {[%emt 0:00:50]} 18. Rac1 {[%emt 0:01:05]} Bb5 {[%emt 0:05:54]} 19. Rxc3 {[%emt 0:08:28]} Bxc3 {[%emt 0:00:07]} 20. Rc1 {[%emt 0:00:10]} Bd4 {[%emt 0:10:37]} 21. e3 {[%emt 0:06:02]} Bb6 {[%emt 0:06:14]} 22. Bc7 {[%emt 0:00:56]} Bxc7 {[%emt 0:01:15]} 23. Rxc7 {[%emt 0:00:08]} e6 {[%emt 0:00:11]} 24. Bc6 {[%emt 0:00:22]} a6 {[%emt 0:09:05]} 25. a4 {[%emt 0:09:50]} Be2 {[%emt 0:02:03]} 26. Kg2 {[%emt 0:06:09]} Rd8 {[%emt 0:01:49]} 27. Bf3 {[%emt 0:00:25]} Bxf3+ {[%emt 0:04:53]} 28. Kxf3 {[%emt 0:00:02]} Rd5 {[%emt 0:00:07]} 29. Rc4 {[%emt 0:00:12]} 1/2-1/2

[Event "4NCL Div 2 2024-25"]
[Site "England"]
[Date "2024.11.23"]
[Round "1.29"]
[White "Thompson, Ian D"]
[Black "Hng, Mei-Xian Eunice"]
[Result "1/2-1/2"]
[ECO "A20"]
[WhiteElo "2010"]
[BlackElo "2082"]
[Annotator "NA RC"]
[PlyCount "69"]
[EventDate "2024.11.23"]
[EventType "team-tourn"]
[EventCountry "ENG"]
[SourceTitle "playchess.com"]
[Source "ChessBase"]
[SourceQuality "1"]
[TimeControl "40/6000+30:3000+30"]

1. c4 {[%emt 0:10:02]} e5 {[%emt 0:10:17]} 2. Nc3 {[%emt 0:00:21]} Nf6 {[%emt 0:00:09]} 3. g3 {[%emt 0:00:19]} c6 {[%emt 0:00:38]} 4. d4 {[%emt 0:01:03]} exd4 {[%emt 0:06:19]} 5. Qxd4 {[%emt 0:00:07]} d5 {[%emt 0:00:03]} 6. cxd5 {[%emt 0:00:57]} cxd5 {[%emt 0:00:18]} 7. Nf3 {[%emt 0:01:25]} Nc6 {[%emt 0:02:17]} 8. Qa4 {[%emt 0:02:09]} Be7 {[%emt 0:14:13]} 9. Bg2 {[%emt 0:00:28]} O-O {[%emt 0:01:41]} 10. O-O {[%emt 0:00:16]} Be6 {[%emt 0:04:53]} 11. Nd4 {[%emt 0:26:00]} Qd7 {[%emt 0:09:59]} 12. Nxe6 {[%emt 0:05:50]} fxe6 {[%emt 0:02:25]} 13. Be3 {[%emt 0:09:21]} Rad8 {[%emt 0:08:43]} 14. Rad1 {[%emt 0:03:11]} Bd6 {[%emt 0:03:19]} 15. a3 {[%emt 0:04:01]} Qf7 {[%emt 0:06:03]} 16. Nb5 {[%emt 0:04:09]} Bb8 {[%emt 0:02:01]} 17. Bc5 {[%emt 0:03:32]} Rfe8 {[%emt 0:03:17]} 18. Nd4 {[%emt 0:02:11]} Nxd4 {[%emt 0:05:38]} 19. Bxd4 {[%emt 0:00:15]} Rc8 {[%emt 0:00:50]} 20. Bxf6 {[%emt 0:08:00]} Qxf6 {[%emt 0:02:00]} 21. e4 {[%emt 0:01:38]} dxe4 {[%emt 0:07:43]} 22. Bxe4 {[%emt 0:02:30]} Re7 {[%emt 0:08:25]} 23. Rd7 {[%emt 0:05:03]} b6 {[%emt 0:01:28]} 24. Rxe7 {[%emt 0:03:49]} Qxe7 {[%emt 0:00:05]} 25. Rd1 {[%emt 0:01:45]} Bd6 {[%emt 0:01:47]} 26. b4 {[%emt 0:02:13]} a5 {[%emt 0:01:37]} 27. bxa5 {[%emt 0:00:47]} bxa5 {[%emt 0:00:04]} 28. Qxa5 {[%emt 0:00:46]} Bxa3 {[%emt 0:00:44]} 29. Qb5 {[%emt 0:04:09]} Rd8 {[%emt 0:04:07]} 30. Rxd8+ {[%emt 0:00:59]} Qxd8 {[%emt 0:00:03]} 31. Kg2 {[%emt 0:01:17]} Qe7 {[%emt 0:01:31]} 32. Qb8+ {[%emt 0:01:08]} Qf8 {[%emt 0:00:07]} 33. Qe5 {[%emt 0:01:54]} Qe7 {[%emt 0:00:34]} 34. Qb8+ {[%emt 0:00:52]} Qf8 {[%emt 0:00:03]} 35. Qe5 {[%emt 0:00:39]} 1/2-1/2

[Event "4NCL Div 2 2024-25"]
[Site "England"]
[Date "2024.11.23"]
[Round "1.30"]
[White "Freeland, Alex"]
[Black "Purdon, Colin"]
[Result "1-0"]
[ECO "D90"]
[WhiteElo "2031"]
[BlackElo "1957"]
[Annotator "NA RC"]
[PlyCount "75"]
[EventDate "2024.11.23"]
[EventType "team-tourn"]
[EventCountry "ENG"]
[SourceTitle "playchess.com"]
[Source "ChessBase"]
[SourceQuality "1"]
[TimeControl "40/6000+30:3000+30"]

1. d4 {[%emt 0:10:03]} Nf6 {[%emt 0:10:09]} 2. c4 {[%emt 0:00:04]} g6 {[%emt 0:00:12]} 3. Nc3 {[%emt 0:00:08]} d5 {[%emt 0:00:12]} 4. Nf3 {[%emt 0:00:21]} Bg7 {[%emt 0:00:20]} 5. h4 {[%emt 0:00:15]} c6 {[%emt 0:07:11]} 6. cxd5 {[%emt 0:00:12]} cxd5 {[%emt 0:00:14]} 7. Bf4 {[%emt 0:00:07]} Nc6 {[%emt 0:00:48]} 8. e3 {[%emt 0:00:14]} Bf5 {[%emt 0:06:23]} 9. Qb3 {[%emt 0:03:54]} Qb6 {[%emt 0:06:32]} 10. Qxb6 {[%emt 0:02:13]} axb6 {[%emt 0:00:10]} 11. Bb5 {[%emt 0:01:17]} Rc8 {[%emt 0:10:26]} 12. Ne5 {[%emt 0:08:43]} O-O {[%emt 0:05:57]} 13. f3 {[%emt 0:08:54]} Na7 {[%emt 0:18:35]} 14. Ba4 {[%emt 0:04:32]} Rfd8 {[%emt 0:00:20]} 15. g4 {[%emt 0:03:54]} Be6 {[%emt 0:00:34]} 16. Kf2 {[%emt 0:08:31]} b5 {[%emt 0:04:05]} 17. Bb3 {[%emt 0:00:39]} h5 {[%emt 0:03:58]} 18. g5 {[%emt 0:01:24]} Nd7 {[%emt 0:00:29]} 19. Nxd7 {[%emt 0:06:35]} Rxd7 {[%emt 0:00:13]} 20. Rhd1 {[%emt 0:01:20]} Rdd8 {[%emt 0:06:06]} 21. a3 {[%emt 0:03:49]} Rc6 {[%emt 0:03:47]} 22. e4 {[%emt 0:02:48]} dxe4 {[%emt 0:03:57]} 23. d5 {[%emt 0:02:07]} Rxc3 {[%emt 0:00:34]} 24. bxc3 {[%emt 0:01:23]} Bf5 {[%emt 0:00:51]} 25. fxe4 {[%emt 0:02:21]} Bxe4 {[%emt 0:00:13]} 26. Rac1 {[%emt 0:00:16]} Nc8 {[%emt 0:00:55]} 27. c4 {[%emt 0:02:36]} Bb2 {[%emt 0:01:50]} 28. cxb5 {[%emt 0:01:56]} Bxc1 {[%emt 0:00:18]} 29. Rxc1 {[%emt 0:01:29]} Nd6 {[%emt 0:03:46]} 30. Ke3 {[%emt 0:03:32]} Bg2 {[%emt 0:02:22]} 31. Bxd6 {[%emt 0:02:48]} Rxd6 {[%emt 0:00:19]} 32. Rc7 {[%emt 0:00:42]} Bxd5 {[%emt 0:05:14]} 33. Bxd5 {[%emt 0:00:10]} Rxd5 {[%emt 0:00:05]} 34. Rxb7 {[%emt 0:00:07]} f6 {[%emt 0:00:47]} 35. gxf6 {[%emt 0:00:55]} exf6 {[%emt 0:00:06]} 36. a4 {[%emt 0:00:13]} Re5+ {[%emt 0:04:28]} 37. Kf3 {[%emt 0:00:59]} g5 {[%emt 0:00:18]} 38. a5 {[%emt 0:00:53]} 1-0

[Event "4NCL Div 2 2024-25"]
[Site "England"]
[Date "2024.11.23"]
[Round "1.31"]
[White "Tart, Peter K"]
[Black "Taylor, William J"]
[Result "0-1"]
[ECO "C43"]
[WhiteElo "1903"]
[BlackElo "1994"]
[Annotator "NA"]
[PlyCount "52"]
[EventDate "2024.11.23"]
[EventType "team-tourn"]
[EventCountry "ENG"]
[SourceTitle "playchess.com"]
[Source "ChessBase"]
[SourceQuality "1"]
[TimeControl "40/6000+30:3000+30"]

1. e4 {[%emt 0:10:02]} e5 {[%emt 0:10:05]} 2. Nf3 {[%emt 0:00:05]} Nf6 {[%emt 0:00:05]} 3. d4 {[%emt 0:00:51]} Nxe4 {[%emt 0:00:06]} 4. Bd3 {[%emt 0:00:06]} d5 {[%emt 0:00:05]} 5. dxe5 {[%emt 0:00:21]} Nc5 {[%emt 0:01:14]} 6. O-O {[%emt 0:03:28]} Be7 {[%emt 0:00:21]} 7. Nc3 {[%emt 0:04:30]} c6 {[%emt 0:02:19]} 8. h3 {[%emt 0:04:12]} Nbd7 {[%emt 0:05:32]} 9. Bf4 {[%emt 0:08:48]} O-O {[%emt 0:02:10]} 10. Re1 {[%emt 0:04:44]} Nxd3 {[%emt 0:01:50]} 11. Qxd3 {[%emt 0:04:01]} f6 {[%emt 0:09:27]} 12. exf6 {[%emt 0:05:41]} Nxf6 {[%emt 0:00:15]} 13. Bg5 {[%emt 0:04:49]} Bd6 {[%emt 0:16:39]} 14. Rad1 {[%emt 0:09:16]} Bd7 {[%emt 0:19:19]} 15. Nxd5 {[%emt 0:06:11]} cxd5 {[%emt 0:01:48]} 16. Bxf6 {[%emt 0:00:11]} Rxf6 {[%emt 0:03:18]} 17. Qxd5+ {[%emt 0:03:32]} Kh8 {[%emt 0:20:52]} 18. Ng5 {[%emt 0:00:09]} Bc6 {[%emt 0:03:22]} 19. Qd3 {[%emt 0:05:41]} Qg8 {[%emt 0:02:25]} 20. Qd4 {[%emt 0:15:29]} h6 {[%emt 0:04:54]} 21. Qh4 {[%emt 0:02:36]} Bc5 {[%emt 0:02:11]} 22. Rd2 {[%emt 0:01:36]} Raf8 {[%emt 0:00:14]} 23. Ree2 {[%emt 0:03:39]} Rf5 {[%emt 0:02:40]} 24. Ne6 {[%emt 0:00:47]} Bxf2+ {[%emt 0:00:03]} 25. Rxf2 {[%emt 0:00:27]} Qxe6 {[%emt 0:00:27]} 26. Rfe2 {[%emt 0:02:01]} Qf6 {[%emt 0:01:14]} 0-1

[Event "4NCL Div 2 2024-25"]
[Site "England"]
[Date "2024.11.23"]
[Round "1.32"]
[White "Turner, Lewis A"]
[Black "Shek, Daniel"]
[Result "1-0"]
[ECO "B33"]
[WhiteElo "1984"]
[BlackElo "1873"]
[Annotator "NA RC"]
[PlyCount "67"]
[EventDate "2024.11.23"]
[EventType "team-tourn"]
[EventCountry "ENG"]
[SourceTitle "playchess.com"]
[Source "ChessBase"]
[SourceQuality "1"]
[TimeControl "40/6000+30:3000+30"]

1. e4 {[%emt 0:10:03]} c5 {[%emt 0:10:04]} 2. Nf3 {[%emt 0:00:03]} Nc6 {[%emt 0:00:07]} 3. d4 {[%emt 0:00:04]} cxd4 {[%emt 0:00:05]} 4. Nxd4 {[%emt 0:00:10]} e5 {[%emt 0:00:30]} 5. Nb5 {[%emt 0:00:07]} d6 {[%emt 0:00:11]} 6. N1c3 {[%emt 0:00:05]} a6 {[%emt 0:00:46]} 7. Na3 {[%emt 0:00:06]} Nf6 {[%emt 0:03:05]} 8. Bg5 {[%emt 0:00:32]} Be7 {[%emt 0:13:48]} 9. Nc4 {[%emt 0:10:40]} Nd4 {[%emt 0:10:00]} 10. Bxf6 {[%emt 0:01:03]} gxf6 {[%emt 0:14:29]} 11. Nd5 {[%emt 0:03:58]} b5 {[%emt 0:11:57]} 12. Ncb6 {[%emt 0:06:52]} Bb7 {[%emt 0:05:49]} 13. Nxa8 {[%emt 0:01:29]} Bxd5 {[%emt 0:08:36]} 14. exd5 {[%emt 0:00:38]} Qxa8 {[%emt 0:07:54]} 15. c3 {[%emt 0:01:21]} Nf5 {[%emt 0:03:16]} 16. Qd3 {[%emt 0:01:32]} Ng7 {[%emt 0:01:32]} 17. a4 {[%emt 0:00:47]} O-O {[%emt 0:04:32]} 18. axb5 {[%emt 0:01:44]} a5 {[%emt 0:03:42]} 19. Be2 {[%emt 0:03:10]} f5 {[%emt 0:01:21]} 20. O-O {[%emt 0:01:16]} Bd8 {[%emt 0:01:33]} 21. Ra4 {[%emt 0:01:06]} Bb6 {[%emt 0:02:38]} 22. b4 {[%emt 0:03:12]} e4 {[%emt 0:01:27]} 23. Qg3 {[%emt 0:02:21]} Qxd5 {[%emt 0:02:02]} 24. bxa5 {[%emt 0:00:31]} Bc5 {[%emt 0:00:34]} 25. Bc4 {[%emt 0:10:58]} Qd2 {[%emt 0:00:29]} 26. Ra2 {[%emt 0:00:09]} Qh6 {[%emt 0:00:53]} 27. a6 {[%emt 0:00:53]} e3 {[%emt 0:00:46]} 28. fxe3 {[%emt 0:00:47]} Bxe3+ {[%emt 0:00:12]} 29. Kh1 {[%emt 0:00:34]} f4 {[%emt 0:00:22]} 30. Qh3 {[%emt 0:01:21]} Qg6 {[%emt 0:01:41]} 31. a7 {[%emt 0:02:16]} Qe4 {[%emt 0:00:32]} 32. Qf3 {[%emt 0:01:41]} Qxf3 {[%emt 0:00:34]} 33. gxf3 {[%emt 0:00:46]} Ra8 {[%emt 0:00:36]} 34. Rfa1 {[%emt 0:00:13]} 1-0

[Event "4NCL Div 2 2024-25"]
[Site "England"]
[Date "2024.11.23"]
[Round "1.33"]
[White "Talsma, Paul"]
[Black "Bowcott-Terry, Finlay"]
[Result "0-1"]
[ECO "E51"]
[WhiteElo "2083"]
[BlackElo "2168"]
[Annotator "RC"]
[PlyCount "74"]
[EventDate "2024.11.23"]
[EventType "team-tourn"]
[EventCountry "ENG"]
[SourceTitle "playchess.com"]
[Source "ChessBase"]
[SourceQuality "1"]
[TimeControl "40/6000+30:3000+30"]

1. d4 {[%emt 0:10:04]} d5 {[%emt 0:10:59]} 2. c4 {[%emt 0:00:09]} Nc6 {[%emt 0:00:05]} 3. e3 {[%emt 0:00:17]} e6 {[%emt 0:03:58]} 4. Nc3 {[%emt 0:02:49]} Nf6 {[%emt 0:00:39]} 5. Nf3 {[%emt 0:11:28]} Bb4 {[%emt 0:00:44]} 6. Bd3 {[%emt 0:04:01]} dxc4 {[%emt 0:02:00]} 7. Bxc4 {[%emt 0:00:30]} O-O {[%emt 0:00:35]} 8. O-O {[%emt 0:00:25]} a6 {[%emt 0:01:05]} 9. Qe2 {[%emt 0:08:25]} Qe7 {[%emt 0:02:15]} 10. e4 {[%emt 0:01:55]} e5 {[%emt 0:00:01]} 11. Bg5 {[%emt 0:03:58]} Bxc3 {[%emt 0:00:07]} 12. bxc3 {[%emt 0:01:34]} Bg4 {[%emt 0:00:01]} 13. d5 {[%emt 0:07:11]} Nb8 {[%emt 0:00:39]} 14. Rab1 {[%emt 0:06:14]} b5 {[%emt 0:00:11]} 15. Bd3 {[%emt 0:01:11]} c6 {[%emt 0:00:01]} 16. c4 {[%emt 0:07:54]} h6 {[%emt 0:01:13]} 17. Bd2 {[%emt 0:08:06]} a5 {[%emt 0:00:57]} 18. h3 {[%emt 0:08:15]} Bh5 {[%emt 0:03:50]} 19. Qe3 {[%emt 0:03:55]} bxc4 {[%emt 0:05:39]} 20. Bxc4 {[%emt 0:00:47]} Bg6 {[%emt 0:00:11]} 21. dxc6 {[%emt 0:03:57]} Nxc6 {[%emt 0:00:30]} 22. Bd3 {[%emt 0:03:07]} Rfd8 {[%emt 0:00:33]} 23. Rb6 {[%emt 0:01:51]} Rd6 {[%emt 0:09:09]} 24. Rc1 {[%emt 0:05:05]} Rad8 {[%emt 0:02:42]} 25. Bb1 {[%emt 0:00:28]} Nb4 {[%emt 0:04:04]} 26. Rxd6 {[%emt 0:01:21]} Rxd6 {[%emt 0:02:46]} 27. Bxb4 {[%emt 0:03:31]} axb4 {[%emt 0:00:05]} 28. Kh2 {[%emt 0:00:22]} Kh7 {[%emt 0:01:59]} 29. Qc5 {[%emt 0:01:35]} Nxe4 {[%emt 0:02:57]} 30. Bxe4 {[%emt 0:02:05]} Bxe4 {[%emt 0:00:03]} 31. Nxe5 {[%emt 0:00:14]} Qg5 {[%emt 0:03:35]} 32. Ng4 {[%emt 0:00:15]} Qf4+ {[%emt 0:00:10]} 33. Kg1 {[%emt 0:00:18]} Rc6 {[%emt 0:00:09]} 34. Qxc6 {[%emt 0:00:25]} Bxc6 {[%emt 0:00:01]} 35. Rxc6 {[%emt 0:00:07]} Qd2 {[%emt 0:00:39]} 36. Rc4 {[%emt 0:02:59]} Qe1+ {[%emt 0:00:58]} 37. Kh2 {[%emt 0:00:02]} f5 {[%emt 0:00:50]} 0-1

[Event "4NCL Div 2 2024-25"]
[Site "England"]
[Date "2024.11.23"]
[Round "1.34"]
[White "Shearsby, Jude"]
[Black "Mason, Donald J"]
[Result "1-0"]
[ECO "B32"]
[WhiteElo "2192"]
[BlackElo "2021"]
[Annotator "RC"]
[PlyCount "99"]
[EventDate "2024.11.23"]
[EventType "team-tourn"]
[EventCountry "ENG"]
[SourceTitle "playchess.com"]
[Source "ChessBase"]
[SourceQuality "1"]
[TimeControl "40/6000+30:3000+30"]

1. e4 {[%emt 0:10:07]} c5 {[%emt 0:10:27]} 2. Nf3 {[%emt 0:00:07]} Nc6 {[%emt 0:00:09]} 3. d4 {[%emt 0:02:42]} cxd4 {[%emt 0:00:08]} 4. Nxd4 {[%emt 0:00:07]} e5 {[%emt 0:02:45]} 5. Nb5 {[%emt 0:01:08]} d6 {[%emt 0:00:09]} 6. N1c3 {[%emt 0:00:16]} a6 {[%emt 0:00:51]} 7. Na3 {[%emt 0:00:10]} Be7 {[%emt 0:05:23]} 8. Nc4 {[%emt 0:12:26]} b5 {[%emt 0:09:33]} 9. Ne3 {[%emt 0:00:32]} Nf6 {[%emt 0:01:05]} 10. Bd3 {[%emt 0:00:08]} O-O {[%emt 0:10:25]} 11. O-O {[%emt 0:00:10]} Be6 {[%emt 0:15:23]} 12. a4 {[%emt 0:03:40]} Nb4 {[%emt 0:11:21]} 13. Be2 {[%emt 0:07:17]} d5 {[%emt 0:07:07]} 14. exd5 {[%emt 0:04:14]} Nbxd5 {[%emt 0:00:36]} 15. Ncxd5 {[%emt 0:01:53]} Nxd5 {[%emt 0:00:10]} 16. Bf3 {[%emt 0:16:52]} Nxe3 {[%emt 0:01:26]} 17. Bxe3 {[%emt 0:00:55]} Qxd1 {[%emt 0:01:10]} 18. Rfxd1 {[%emt 0:00:12]} Rac8 {[%emt 0:05:53]} 19. Rdc1 {[%emt 0:05:21]} f5 {[%emt 0:13:37]} 20. axb5 {[%emt 0:04:48]} e4 {[%emt 0:05:27]} 21. Be2 {[%emt 0:01:46]} f4 {[%emt 0:02:05]} 22. Bd4 {[%emt 0:02:10]} f3 {[%emt 0:00:32]} 23. Bf1 {[%emt 0:03:15]} axb5 {[%emt 0:01:47]} 24. gxf3 {[%emt 0:02:27]} exf3 {[%emt 0:00:16]} 25. Bxb5 {[%emt 0:03:19]} Rf5 {[%emt 0:03:05]} 26. Bd3 {[%emt 0:00:07]} Rg5+ {[%emt 0:01:26]} 27. Kf1 {[%emt 0:00:52]} Bh3+ {[%emt 0:00:50]} 28. Ke1 {[%emt 0:00:01]} Rg1+ {[%emt 0:00:36]} 29. Kd2 {[%emt 0:00:02]} Rg2 {[%emt 0:00:34]} 30. Be3 {[%emt 0:00:12]} Bg5 {[%emt 0:00:35]} 31. Bxg5 {[%emt 0:02:13]} Rxf2+ {[%emt 0:00:03]} 32. Ke3 {[%emt 0:00:44]} Rg2 {[%emt 0:00:54]} 33. Bf4 {[%emt 0:01:12]} g5 {[%emt 0:00:35]} 34. Bg3 {[%emt 0:00:24]} g4 {[%emt 0:00:28]} 35. Bf1 {[%emt 0:02:37]} Re8+ {[%emt 0:00:29]} 36. Kf4 {[%emt 0:00:20]} Rd2 {[%emt 0:00:37]} 37. Bxh3 {[%emt 0:01:52]} Rd4+ {[%emt 0:00:14]} 38. Kf5 {[%emt 0:00:26]} gxh3 {[%emt 0:00:45]} 39. Rd1 {[%emt 0:02:25]} Rf8+ {[%emt 0:00:20]} 40. Ke5 {[%emt 0:00:16]} Rg4 {[%emt 0:00:20]} 41. Rf1 {[%emt 0:51:44]} h5 {[%emt 0:29:29]} 42. Rg1 {[%emt 0:00:00]} f2 {[%emt 0:07:16]} 43. Rgf1 {[%emt 0:00:00]} Rg5+ {[%emt 0:04:13]} 44. Ke4 {[%emt 0:00:00]} Re8+ {[%emt 0:03:40]} 45. Kd4 {[%emt 0:00:00]} Rg4+ {[%emt 0:00:35]} 46. Kd3 {[%emt 0:00:00]} Rd8+ {[%emt 0:02:57]} 47. Ke3 {[%emt 0:00:00]} Re8+ {[%emt 0:01:06]} 48. Kxf2 {[%emt 0:00:00]} h4 {[%emt 0:00:14]} 49. Kf3 {[%emt 0:00:00]} Rg7 {[%emt 0:02:50]} 50. Bf4 {[%emt 0:00:00]} 1-0